bitfinex-derivatives/quotes_SOLF0:USTF0_20251229
["timestamp","ask_amount","ask_price","bid_price","bid_amount"]
[1767005381483,10.3466,125.91,125.87,0.05022777]
[1767005381782,3.19,125.9,125.87,0.05022777]
[1767005386581,10.3469,125.9,125.87,0.00022777]
[1767005386785,3.21,125.88,125.8,3.31]
[1767005386987,3.21,125.86,125.8,3.31]
[1767005387782,0.05645655,125.84,125.82,0.05399621]
[1767005400990,0.05645655,125.84,125.8,3.31]
[1767005401391,0.05645655,125.84,125.8,10.4725]
[1767005401699,0.05645655,125.84,125.8,3.31]
[1767005402100,0.05645655,125.84,125.81,0.05840781]
[1767005403300,7.1586,125.87,125.81,3.32840781]
[1767005403595,3.21,125.89,125.81,3.32840781]
[1767005403798,3.21,125.89,125.81,3.27]
[1767005404497,0.05673019,125.86,125.84,0.05091636]
[1767005404993,3.27,125.91,125.84,3.32091636]
[1767005406002,0.05512604,125.89,125.84,3.32091636]
[1767005406196,0.05512604,125.89,125.85,0.05521998]
[1767005408605,7.21262604,125.89,125.85,0.05521998]
[1767005409902,0.05512604,125.89,125.85,3.32521998]
[1767005410408,3.27,125.92,125.87,3.27]
[1767005411208,3.29,125.94,125.88,3.27]
[1767005411406,0.05186488,125.92,125.9,0.05555833]
[1767005425532,5.68089015,125.92,125.86,10.5087]
[1767005425919,3.32186488,125.92,125.86,10.5087]
[1767005426332,3.32186488,125.92,125.88,0.05825206]
[1767005431242,5.68089015,125.92,125.88,0.05825206]
[1767005433138,3.32186488,125.92,125.88,0.05825206]
[1767005440843,3.21,125.9,125.85,101.1392]
[1767005441042,7.1565,125.91,125.82,3.35]
[1767005441043,5.56902527,125.88,125.82,3.35]
[1767005441243,3.21,125.87,125.82,3.35]
[1767005441639,3.21,125.87,125.78,120.78792527]
[1767005441640,3.21,125.87,125.8,97.29]
[1767005441855,3.21,125.85,125.8,97.29]
[1767005442150,3.27069281,125.85,125.82,0.06068573]
[1767005449351,0.06069281,125.85,125.82,3.28068573]
[1767005454861,3.21,125.87,125.82,3.28068573]
[1767005455854,0.0597718,125.86,125.82,3.28068573]
[1767005456057,0.0597718,125.86,125.83,3.33]
[1767005460666,5.62902527,125.91,125.84,3.33]
[1767005461764,10.47944633,125.89,125.84,3.33]
[1767005462856,10.47944633,125.89,125.85,0.05987756]
[1767005470488,3.32194633,125.89,125.85,0.05987756]
[1767005470685,0.05194633,125.89,125.85,3.38987756]
[1767005471685,0.05194633,125.89,125.85,10.54957756]
[1767005480091,0.05194633,125.89,125.86,3.15]
[1767005480492,0.00194633,125.89,125.86,10.309]
[1767005480688,0.00194633,125.89,125.87,3.15]
[1767005481393,9.78052296,125.94,125.88,3.15]
[1767005481584,3.22,125.94,125.88,3.15]
[1767005482196,3.22,125.96,125.9,3.15]
[1767005482392,0.05168206,125.94,125.92,0.05333904]
[1767005484291,3.27168206,125.94,125.92,0.00333904]
[1767005484495,111.3129,125.92,125.8,3.15]
[1767005484693,115.02669006,125.9,125.8,3.15]
[1767005484991,7.1585,125.88,125.8,3.15]
[1767005485288,115.02669006,125.9,125.81,3.15]
[1767005485493,0.05304221,125.87,125.84,0.05715943]
[1767005486692,0.05304221,125.87,125.84,3.20715943]
[1767005486897,9.78052296,125.93,125.84,3.20715943]
[1767005487093,121.07832296,125.94,125.84,3.15]
[1767005487292,121.07832296,125.94,125.85,3.15]
[1767005487902,0.05603188,125.91,125.88,0.05033456]
[1767005497707,9.78052296,125.94,125.88,3.20033456]
[1767005498005,13.46801302,125.94,125.88,0.05033456]
[1767005498707,7.1555,125.93,125.88,0.05033456]
[1767005499009,0.06044207,125.92,125.88,0.05033456]
[1767005501613,7.21644207,125.92,125.88,0.05033456]
[1767005504617,0.06044207,125.92,125.88,3.20033456]
[1767005506617,0.06044207,125.92,125.88,10.35833456]
[1767005506917,0.06044207,125.92,125.89,3.47]
[1767005518423,0.00044207,125.92,125.89,3.47]
[1767005521527,0.00044207,125.92,125.88,0.05033456]
[1767005521918,7.15644207,125.92,125.88,0.05033456]
[1767005522222,7.15644207,125.92,125.83,3.14]
[1767005522223,13.46801302,125.9,125.83,3.14]
[1767005522428,7.158,125.89,125.83,3.14]
[1767005523226,0.05462511,125.87,125.85,0.0505306]
[1767005524826,0.00462511,125.87,125.85,3.1905306]
[1767005525627,0.00462511,125.87,125.85,10.3501306]
[1767005530433,0.00462511,125.87,125.86,3.14]
[1767005534736,0.00462511,125.87,125.85,0.0505306]
[1767005534935,0.00462511,125.87,125.85,3.1905306]
[1767005536542,0.00462511,125.87,125.86,3.3]
[1767005544342,7.1558,125.92,125.87,3.3]
[1767005544740,9.78052296,125.91,125.87,3.3]
[1767005545234,9.78052296,125.91,125.88,0.05769221]
[1767005545432,0.05105966,125.9,125.88,0.05769221]
[1767005557049,7.20815966,125.9,125.84,7.1601]
[1767005557247,7.20815966,125.9,125.83,3.3]
[1767005557248,9.83158262,125.9,125.83,3.3]
[1767005558150,9.83158262,125.9,125.85,0.05605789]
[1767005558548,7.1575,125.89,125.85,0.05605789]
[1767005563254,7.1575,125.89,125.85,3.35605789]
[1767005564358,16.93802296,125.89,125.85,3.35605789]
[1767005564548,7.1575,125.89,125.85,3.35605789]
[1767005566355,16.93802296,125.89,125.85,3.35605789]
[1767005566653,7.1575,125.89,125.85,3.35605789]
[1767005570261,16.98858262,125.9,125.85,3.35605789]
[1767005572463,9.83158262,125.9,125.85,0.05605789]
[1767005572758,9.78052296,125.89,125.85,0.05605789]
[1767005573363,7.1581,125.88,125.85,0.05605789]
[1767005574863,9.78052296,125.89,125.85,0.05605789]
[1767005575367,9.83158262,125.9,125.85,0.05605789]
[1767005576555,7.1578,125.89,125.85,0.05605789]
[1767005581268,9.83158262,125.9,125.85,3.30605789]
[1767005581469,0.05105966,125.9,125.85,3.30605789]
[1767005582567,7.20795966,125.9,125.85,3.30605789]
[1767005586677,16.98848262,125.9,125.85,3.30605789]
[1767005589375,7.1563,125.92,125.86,3.17]
[1767005589571,10.5063,125.92,125.87,3.17]
[1767005590276,3.35,125.91,125.85,3.17]
[1767005590476,3.35,125.9,125.85,3.17]
[1767005591479,3.35,125.9,125.86,0.05958598]
[1767005597978,7.21339729,125.91,125.86,3.27958598]
[1767005598185,0.05699729,125.91,125.88,3.22]
[1767005598375,3.16,125.94,125.89,3.22]
[1767005598579,3.16,125.98,125.89,3.22]
[1767005599379,0.05801545,125.95,125.92,0.05837728]
[1767005600484,3.21801545,125.95,125.92,0.05837728]
[1767005609285,0.05801545,125.95,125.92,0.05837728]
[1767005611694,3.16,125.97,125.92,10.43417728]
[1767005612793,0.05497007,125.96,125.92,10.43417728]
[1767005612988,3.16,125.99,125.93,10.3751]
[1767005614197,0.05717867,125.97,125.95,0.0548359]
[1767005614993,3.16,125.99,125.95,0.0548359]
[1767005615796,3.16,125.99,125.95,7.2087359]
[1767005615989,0.05598189,125.98,125.95,7.2087359]
[1767005619596,0.05598189,125.98,125.95,0.0548359]
[1767005623508,0.05598189,125.98,125.95,3.2748359]
[1767005625119,3.21598189,125.98,125.95,0.0548359]
[1767005629817,0.05598189,125.98,125.95,0.0548359]
[1767005634021,0.05598189,125.98,125.95,10.3886359]
[1767005634232,3.37,126.0,125.95,3.2348359]
[1767005635226,0.05898148,125.99,125.95,3.2348359]
[1767005635628,0.05898148,125.99,125.96,7.1532]
[1767005639545,0.05898148,125.99,125.95,3.2348359]
[1767005641030,0.05898148,125.99,125.95,10.3888359]
[1767005646536,0.05898148,125.99,125.96,3.3]
[1767005647835,0.05898148,125.99,125.95,7.2088359]
[1767005648227,0.05898148,125.99,125.95,10.5088359]
[1767005668848,0.05898148,125.99,125.95,104.3888359]
[1767005679452,0.05898148,125.99,125.96,3.22]
[1767005684357,0.05898148,125.99,125.95,93.9348359]
[1767005684556,13.38439768,125.99,125.94,3.22]
[1767005684749,3.49,125.97,125.93,93.88]
[1767005684944,13.3254162,125.97,125.93,93.88]
[1767005685149,3.49,125.97,125.93,93.88]
[1767005685551,0.05941238,125.96,125.94,0.05037099]
[1767005685748,9.8354162,125.98,125.94,3.34037099]
[1767005686350,13.0454162,125.98,125.94,0.05037099]
[1767005686661,9.8354162,125.97,125.94,0.05037099]
[1767005686951,0.05359022,125.97,125.94,0.05037099]
[1767005697967,0.00359022,125.97,125.95,3.47]
[1767005698173,0.00359022,125.97,125.96,97.37]
[1767005702268,0.00359022,125.97,125.94,7.20487099]
[1767005702269,0.00359022,125.97,125.94,93.95037099]
[1767005712483,0.00359022,125.97,125.94,0.05037099]
[1767005727788,7.1546,125.95,125.89,3.34]
[1767005728674,0.05230811,125.93,125.91,0.06005101]
[1767005730881,3.37,125.92,125.8,125.7356]
[1767005731083,3.37,125.92,125.84,3.34]
[1767005731393,3.37,125.91,125.84,3.34]
[1767005732091,0.05176826,125.89,125.86,0.05914914]
[1767005732286,7.20936826,125.89,125.86,0.05914914]
[1767005738499,0.05176826,125.89,125.86,0.05914914]
[1767005744704,3.52176826,125.89,125.86,0.05914914]
[1767005744904,3.52176826,125.89,125.83,3.47]
[1767005745105,3.47,125.88,125.83,3.47]
[1767005746011,3.4,125.86,125.79,93.96]
[1767005746697,3.4,125.85,125.75,3.68312622]
[1767005746999,3.4,125.85,125.79,0.05039975]
[1767005748001,0.05351955,125.83,125.79,0.05039975]
[1767005748202,3.45351955,125.83,125.79,0.05039975]
[1767005749107,0.00351955,125.83,125.79,0.78039975]
[1767005756622,3.40351955,125.83,125.79,0.05039975]
[1767005756910,3.40351955,125.83,125.75,0.73]
[1767005757101,7.08312622,125.8,125.72,0.73]
[1767005757298,3.4,125.79,125.72,0.73]
[1767005757907,0.05942112,125.77,125.74,0.05630477]
[1767005760617,3.41,125.84,125.75,0.67]
[1767005760804,3.41,125.84,125.76,0.67]
[1767005761118,205.3725,125.86,125.77,0.67]
[1767005761119,3.41,125.86,125.77,0.67]
[1767005761312,3.41,125.9,125.79,0.67]
[1767005761512,3.41,125.9,125.81,0.67]
[1767005761712,3.41,125.9,125.83,0.72648355]
[1767005762420,97.41,125.92,125.83,0.72648355]
[1767005762605,104.5662,125.92,125.84,0.61]
[1767005762805,0.05109668,125.89,125.86,0.05366367]
[1767005763406,3.41,125.88,125.81,94.61]
[1767005764119,3.41,125.88,125.82,0.61]
[1767005764317,0.06086772,125.86,125.84,0.05566921]
[1767005765209,3.41,125.85,125.79,0.67]
[1767005766012,3.41,125.85,125.77,0.67]
[1767005766209,0.05823481,125.82,125.8,0.05983184]
[1767005766715,0.05823481,125.82,125.77,0.67]
[1767005767811,0.05823481,125.82,125.78,0.05620155]
[1767005770914,3.41,125.85,125.78,0.72620155]
[1767005771224,7.1596,125.86,125.78,0.72620155]
[1767005771522,3.41,125.85,125.78,0.67]
[1767005771912,0.05414402,125.83,125.8,0.05689982]
[1767005778715,3.2,125.87,125.81,0.56]
[1767005779721,0.04996634,125.85,125.83,0.05661925]
[1767005781727,3.2,125.89,125.83,0.56661925]
[1767005782820,0.05629205,125.87,125.83,0.56661925]
[1767005787123,0.05629205,125.87,125.84,0.51]
[1767005789119,3.25629205,125.87,125.83,7.21751925]
[1767005790331,3.2,125.86,125.79,3.38]
[1767005790725,3.2,125.85,125.77,99.7207057]
[1767005791230,3.2,125.85,125.78,3.38]
[1767005791431,0.05170784,125.83,125.8,0.05635484]
[1767005792535,3.25170784,125.83,125.8,0.05635484]
[1767005792721,3.25170784,125.83,125.76,5.7407057]
[1767005793732,10.41260784,125.83,125.78,0.05510582]
[1767005795632,3.25170784,125.83,125.78,0.05510582]
[1767005795837,3.25170784,125.83,125.78,3.43510582]
[1767005796033,0.05170784,125.83,125.78,3.43510582]
[1767005797736,0.05170784,125.83,125.78,10.59880582]
[1767005809542,0.05170784,125.83,125.79,3.32]
[1767005809742,0.05170784,125.83,125.79,10.483]
[1767005813344,0.00170784,125.83,125.8,3.32]
[1767005819551,13.18586112,125.87,125.81,3.37]
[1767005820047,3.43,125.87,125.81,3.37]
[1767005820443,9.75586112,125.88,125.82,3.37]
[1767005820639,3.33,125.89,125.84,0.06095276]
[1767005820843,14.63379168,125.91,125.85,3.37]
[1767005820844,13.08586112,125.91,125.85,3.37]
[1767005821043,20.24226112,125.91,125.85,3.37]
[1767005821247,3.33,125.91,125.85,3.37]
[1767005821447,9.75586112,125.92,125.86,3.37]
[1767005821643,3.33,125.93,125.86,3.37]
[1767005821945,3.33,125.93,125.88,0.05337769]
[1767005821946,0.00217087,125.9,125.88,0.05337769]
[1767005822148,3.33217087,125.9,125.88,0.00337769]
[1767005823643,10.48917087,125.9,125.88,0.00337769]
[1767005824044,10.48917087,125.9,125.83,97.37]
[1767005825047,10.48917087,125.9,125.85,0.05658679]
[1767005826546,3.33,125.89,125.85,0.05658679]
[1767005830961,10.4875,125.89,125.85,0.05658679]
[1767005831253,3.33,125.88,125.81,3.37]
[1767005832251,0.05611547,125.86,125.83,0.05368111]
[1767005834060,3.33,125.88,125.83,3.42368111]
[1767005834953,0.05155987,125.87,125.83,3.42368111]
[1767005835463,3.30155987,125.87,125.83,0.05368111]
[1767005839573,3.25,125.86,125.83,0.05368111]
[1767005842056,3.25,125.85,125.83,0.00368111]
[1767005842360,5.6107057,125.85,125.83,0.00368111]
[1767005842760,3.25,125.84,125.74,5.5807057]
[1767005842962,113.7392057,125.85,125.75,3.22]
[1767005842963,3.25,125.81,125.75,3.22]
[1767005843474,3.25,125.81,125.75,97.2]
[1767005843769,0.05880849,125.79,125.77,0.05489326]
[1767005845073,3.30880849,125.79,125.73,3.22]
[1767005846271,3.30880849,125.79,125.75,0.05112774]
[1767005847171,10.47230849,125.79,125.75,0.00112774]
[1767005847372,3.25,125.78,125.75,0.00112774]
[1767005855575,3.25,125.75,125.7,13.78173687]
[1767005856075,3.25,125.74,125.7,13.78173687]
[1767005856473,0.05880116,125.73,125.71,0.06058652]
[1767005856873,3.30880116,125.73,125.71,0.06058652]
[1767005857575,10.47550116,125.73,125.67,3.22]
[1767005857769,3.30880116,125.73,125.67,3.22]
[1767005857969,7.00372534,125.73,125.62,205.6105]
[1767005858172,3.69492418,125.71,125.61,3.22]
[1767005858376,3.25,125.7,125.61,3.22]
[1767005858578,0.05256811,125.67,125.64,0.05249362]
[1767005858776,0.00256811,125.67,125.64,3.27249362]
[1767005859169,0.00256811,125.67,125.64,0.05249362]
[1767005859980,3.25256811,125.67,125.64,0.05249362]
[1767005860183,3.25256811,125.67,125.64,0.00249362]
[1767005861281,3.25,125.66,125.58,94.04]
[1767005861574,3.25,125.66,125.57,3.22]
[1767005861777,3.25,125.66,125.58,3.22]
[1767005861976,3.25,125.66,125.59,3.22]
[1767005862882,0.05664459,125.64,125.61,0.0609334]
[1767005863386,3.69492418,125.69,125.61,0.0609334]
[1767005863387,3.25,125.69,125.61,3.2809334]
[1767005863683,3.25,125.69,125.61,3.22]
[1767005864274,0.05140641,125.66,125.64,0.05395198]
[1767005864676,0.05140641,125.66,125.64,0.00395198]
[1767005864880,3.30140641,125.66,125.64,0.00395198]
[1767005865079,3.25,125.65,125.59,94.08]
[1767005865279,3.25,125.65,125.57,3.22]
[1767005866086,0.05593817,125.62,125.6,0.0545024]
[1767005866291,3.26593817,125.62,125.6,0.0545024]
[1767005867793,0.05593817,125.62,125.6,0.0545024]
[1767005869586,3.21,125.66,125.6,0.0545024]
[1767005869984,10.3791,125.69,125.6,3.5145024]
[1767005870187,97.33,125.69,125.6,3.46]
[1767005870387,3.21,125.68,125.6,3.46]
[1767005870589,0.05100406,125.65,125.63,0.05606458]
[1767005870793,0.05100406,125.65,125.6,3.46]
[1767005870983,0.05100406,125.65,125.59,7.1743]
[1767005871292,3.21,125.63,125.55,3.46]
[1767005871492,3.21,125.66,125.58,3.46]
[1767005871898,0.05559258,125.63,125.61,0.05744093]
[1767005875098,3.21,125.66,125.61,0.05744093]
[1767005876116,0.05311039,125.65,125.61,0.05744093]
[1767005879809,0.05311039,125.65,125.61,3.53744093]
[1767005880117,10.578,125.71,125.61,3.53744093]
[1767005880310,5.77797211,125.7,125.63,10.6521]
[1767005880508,3.41,125.69,125.61,3.48]
[1767005880912,0.05138787,125.66,125.64,0.05656952]
[1767005882114,0.00138787,125.66,125.64,0.05656952]
[1767005885112,382.46754142,125.88,125.65,3.48]
[1767005885113,3.41,125.73,125.65,3.48]
[1767005885507,3.41,125.72,125.65,3.48]
[1767005885817,3.41,125.72,125.64,94.14]
[1767005886018,0.05907435,125.69,125.67,0.05267959]
[1767005886519,3.46907435,125.69,125.67,0.00267959]
[1767005886908,3.46907435,125.69,125.61,97.62]
[1767005887114,3.41,125.69,125.61,97.62]
[1767005887310,3.41,125.69,125.62,3.48]
[1767005887513,9.21137054,125.69,125.62,3.48]
[1767005887818,0.0567857,125.67,125.64,0.0514588]
[1767005888913,5.80137054,125.69,125.64,3.5314588]
[1767005889121,3.41,125.71,125.64,3.5314588]
[1767005889122,0.00137054,125.68,125.64,3.5314588]
[1767005889419,3.41,125.71,125.64,3.5314588]
[1767005889921,10.5764,125.74,125.65,1.96]
[1767005890124,10.5764,125.74,125.68,0.05204331]
[1767005890323,7.1667,125.73,125.68,0.05204331]
[1767005891115,0.05193218,125.72,125.68,0.05204331]
[1767005894020,0.05193218,125.72,125.68,1.95204331]
[1767005894220,0.00193218,125.72,125.68,1.95204331]
[1767005894824,0.00193218,125.72,125.68,9.12124331]
[1767005895621,0.00193218,125.72,125.69,9.0283]
[1767005895815,0.00193218,125.72,125.69,1.86]
[1767005896419,3.41,125.76,125.69,1.86]
[1767005896619,3.41,125.76,125.69,95.98]
[1767005897326,3.41,125.76,125.67,8.86]
[1767005897625,0.03775692,125.73,125.7,0.05523131]
[1767005899624,20.20066112,125.77,125.7,9.08333131]
[1767005900129,9.75586112,125.78,125.72,1.82]
[1767005900315,13.03586112,125.79,125.72,1.82]
[1767005900521,3.28,125.79,125.72,1.82]
[1767005900729,3.28,125.79,125.74,0.05809515]
[1767005901229,13.03586112,125.79,125.74,0.05809515]
[1767005902325,3.28,125.79,125.74,0.05809515]
[1767005907332,10.4432,125.79,125.74,0.05809515]
[1767005912427,3.28,125.81,125.74,1.87809515]
[1767005912733,3.28,125.79,125.74,0.05809515]
[1767005912929,3.28,125.79,125.75,0.06058359]
[1767005913529,10.4432,125.79,125.75,0.06058359]
[1767005916933,2.36470529,125.8,125.75,0.06058359]
[1767005917134,10.4424,125.81,125.75,0.06058359]
[1767005918536,3.28,125.8,125.75,7.22578359]
[1767005921639,3.28,125.8,125.75,0.06058359]
[1767005921946,5.64470529,125.8,125.75,0.06058359]
[1767005922245,3.28,125.79,125.75,0.06058359]
[1767005922644,10.4433,125.79,125.75,0.06058359]
[1767005923143,3.28,125.79,125.75,0.06058359]
[1767005933344,3.18,125.81,125.75,9.04598359]
[1767005934648,3.18,125.81,125.75,1.88058359]
[1767005935548,3.18,125.81,125.75,9.04568359]
[1767005935951,3.18,125.81,125.75,0.06058359]
[1767005936250,3.18,125.79,125.75,0.06058359]
[1767005942141,3.18,125.79,125.75,0.00058359]
[1767005943153,0.0549406,125.78,125.75,0.00058359]
[1767005943354,3.2949406,125.78,125.75,0.00058359]
[1767005944552,9.75586112,125.77,125.75,0.00058359]
[1767005946155,0.0549406,125.78,125.75,0.00058359]
[1767005949256,0.0549406,125.78,125.75,9.04598359]
[1767005949554,3.24,125.8,125.75,103.08598359]
[1767005950154,3.24,125.8,125.76,7.1649]
[1767005953061,9.75586112,125.81,125.76,9.0449]
[1767005953258,9.75586112,125.81,125.76,103.0849]
[1767005953859,12.99586112,125.82,125.76,103.0849]
[1767005954061,12.99586112,125.82,125.78,0.05912079]
[1767005956063,12.96586112,125.84,125.78,0.05912079]
[1767005956859,3.21,125.84,125.78,0.05912079]
[1767005957164,3.21,125.84,125.78,4.30382608]
[1767005958368,3.21,125.84,125.8,7.1625]
[1767005958573,3.21,125.84,125.81,0.05686514]
[1767005958960,3.21,125.84,125.79,94.04]
[1767005959966,0.05261912,125.83,125.8,0.05987991]
[1767005960969,0.05261912,125.83,125.8,94.07987991]
[1767005961676,0.05261912,125.83,125.8,101.24237991]
[1767005967172,3.26261912,125.83,125.78,7.1633]
[1767005967363,3.26261912,125.83,125.75,94.02]
[1767005967565,3.21,125.82,125.75,94.02]
[1767005967771,3.21,125.82,125.76,7.1643]
[1767005967970,3.21,125.81,125.76,7.1643]
[1767005968169,3.26797534,125.8,125.77,0.05632182]
[1767005972575,0.05797534,125.8,125.77,0.05632182]
[1767005978879,0.05797534,125.8,125.77,7.22062182]
[1767005979382,0.05797534,125.8,125.77,101.24062182]
[1767005980679,12.96586112,125.84,125.77,103.23062182]
[1767005980884,3.21,125.84,125.77,103.23062182]
[1767005981384,3.21,125.84,125.78,1.94]
[1767005981576,10.3704,125.84,125.78,1.94]
[1767005981776,0.06118639,125.82,125.8,0.05736105]
[1767005982982,3.27118639,125.82,125.75,7.165]
[1767005983985,3.27118639,125.82,125.77,0.05811522]
[1767005984581,10.3721,125.81,125.77,0.05811522]
[1767005984778,3.21,125.8,125.75,7.165]
[1767005985882,0.05016706,125.79,125.76,0.05776131]
[1767005991781,0.05016706,125.79,125.76,9.27246131]
[1767006000392,0.05016706,125.79,125.76,2.10776131]
[1767006000791,3.31016706,125.79,125.72,7.0]
[1767006000991,3.31016706,125.79,125.73,94.04]
[1767006001389,3.26,125.77,125.7,2.11]
[1767006001695,3.26,125.77,125.7,96.15]
[1767006001885,0.05966518,125.75,125.72,0.05936183]
[1767006002089,3.31966518,125.75,125.68,2.11]
[1767006002396,3.26,125.75,125.69,2.17]
[1767006003092,0.05073311,125.73,125.71,0.0578953]
[1767006003693,0.00073311,125.73,125.71,2.2278953]
[1767006003884,0.00073311,125.73,125.71,0.0578953]
[1767006005097,0.00073311,125.73,125.65,2.18]
[1767006005098,3.26073311,125.73,125.65,2.18]
[1767006005294,3.26,125.73,125.65,9.351]
[1767006005805,3.26,125.71,125.65,2.18]
[1767006006002,0.05351437,125.69,125.67,0.05210162]
[1767006008494,3.31351437,125.69,125.61,9.403]
[1767006008702,3.26,125.69,125.62,2.23]
[1767006009197,3.26,125.68,125.62,2.23]
[1767006009606,0.05278883,125.66,125.64,0.05538073]
[1767006009908,0.05278883,125.66,125.6,7.1738]
[1767006010111,0.05278883,125.66,125.6,9.4538]
[1767006011007,0.05278883,125.66,125.62,0.05449607]
[1767006011905,0.05278883,125.66,125.62,2.33449607]
[1767006017715,0.00278883,125.66,125.62,2.33449607]
[1767006018214,0.00278883,125.66,125.63,7.1721]
[1767006018712,0.00278883,125.66,125.62,2.33449607]
[1767006020104,0.00278883,125.66,125.62,9.50729607]
[1767006021314,0.00278883,125.66,125.62,2.33449607]
[1767006021810,3.36278883,125.66,125.62,0.05449607]
[1767006024514,0.00278883,125.66,125.62,0.05449607]
[1767006026611,3.36278883,125.66,125.62,0.05449607]
[1767006027315,10.53348883,125.66,125.62,0.05449607]
[1767006027909,0.00278883,125.66,125.62,0.05449607]
[1767006029012,10.53348883,125.66,125.62,0.05449607]
[1767006030909,0.00278883,125.66,125.62,0.05449607]
[1767006031110,0.00278883,125.66,125.63,2.23]
[1767006032218,0.00278883,125.66,125.64,2.23]
[1767006033911,3.36,125.69,125.64,4.59935789]
[1767006034118,3.36,125.71,125.65,2.23]
[1767006034319,3.36,125.73,125.67,2.23]
[1767006034514,3.36,125.75,125.67,2.23]
[1767006035116,0.06085621,125.72,125.7,0.05569247]
[1767006036611,3.42085621,125.72,125.67,7.1699]
[1767006037024,3.36,125.71,125.64,9.4512]
[1767006037614,0.05294096,125.69,125.66,0.05555276]
[1767006040627,3.36,125.71,125.66,2.33555276]
[1767006040927,3.36,125.73,125.66,2.33555276]
[1767006041127,3.36,125.73,125.66,2.28]
[1767006041533,0.05124638,125.71,125.68,0.05137922]
[1767006042423,3.36,125.76,125.68,2.33137922]
[1767006042624,3.36,125.76,125.68,2.28]
[1767006042930,3.36,125.74,125.66,2.28]
[1767006043427,0.05653694,125.71,125.69,0.05061389]
[1767006048439,3.33653694,125.71,125.66,7.1701]
[1767006049528,3.33653694,125.71,125.67,0.05594261]
[1767006062241,3.33653694,125.71,125.65,96.51]
[1767006062552,0.05653694,125.71,125.66,4.75935789]
[1767006062733,0.05653694,125.71,125.67,2.39]
[1767006062937,0.05653694,125.71,125.67,9.56]
[1767006063332,0.05653694,125.71,125.68,0.05268227]
[1767006063646,12.12521901,125.76,125.69,2.34]
[1767006063647,3.28,125.75,125.69,2.34]
[1767006064040,3.28,125.75,125.7,4.70935789]
[1767006064344,3.28,125.77,125.71,9.5075]
[1767006064547,0.05843707,125.75,125.73,0.0524362]
[1767006065743,3.33843707,125.75,125.73,0.0024362]
[1767006066046,3.33843707,125.75,125.69,94.1]
[1767006066047,3.28,125.74,125.69,94.1]
[1767006066841,3.28,125.74,125.7,0.0526763]
[1767006068453,3.33843707,125.75,125.7,0.0526763]
[1767006069547,0.05843707,125.75,125.7,4.81203419]
[1767006070552,0.05843707,125.75,125.7,11.98023419]
[1767006071139,0.05843707,125.75,125.71,9.5576]
[1767006071349,0.05843707,125.75,125.71,2.39]
[1767006074562,0.05843707,125.75,125.7,7.2208763]
[1767006074864,3.36843707,125.75,125.7,0.0526763]
[1767006085158,7.1661,125.74,125.67,3.36]
[1767006085362,16.92196112,125.74,125.67,3.36]
[1767006086063,9.75586112,125.73,125.66,94.08]
[1767006086256,0.05627218,125.72,125.69,0.00063271]
[1767006086659,0.05627218,125.72,125.63,10.5318]
[1767006086660,2.36935789,125.71,125.63,10.5318]
[1767006086864,9.75586112,125.7,125.63,3.36]
[1767006087458,16.92426112,125.7,125.63,3.36]
[1767006087655,0.06092833,125.68,125.65,0.05068857]
[1767006088360,0.06092833,125.68,125.65,0.00068857]
[1767006089462,7.23052833,125.68,125.65,0.00068857]
[1767006090568,7.1701,125.67,125.59,3.36]
[1767006091568,0.05539428,125.64,125.62,0.05880453]
[1767006093669,7.1695,125.68,125.62,0.05880453]
[1767006094669,0.0610598,125.66,125.62,0.05880453]
[1767006098876,0.0610598,125.66,125.62,3.41880453]
[1767006101378,0.0610598,125.66,125.62,0.05880453]
[1767006103678,7.2318598,125.66,125.62,0.05880453]
[1767006107387,7.2318598,125.66,125.59,7.1744]
[1767006107983,7.2318598,125.66,125.59,10.5644]
[1767006108584,7.2318598,125.66,125.61,0.05741409]
[1767006117291,7.1712,125.65,125.61,0.05741409]
[1767006118188,7.1718,125.64,125.61,0.05741409]
[1767006121593,7.2322598,125.66,125.61,0.05741409]